bitfinex-derivatives/quotes_BTCF0:USTF0_20241120
["timestamp","ask_amount","ask_price","bid_price","bid_amount"]
[1732137638904,0.3608,93989.0,93971.0,0.053156]
[1732137639089,0.3608,93989.0,93969.0,0.3608]
[1732137639090,0.3608,93981.0,93969.0,0.3608]
[1732137639289,0.3608,93981.0,93967.0,8.945e-05]
[1732137639290,0.3608,93971.0,93967.0,8.945e-05]
[1732137639505,0.15426661,93968.0,93967.0,8.945e-05]
[1732137639797,0.51506661,93968.0,93967.0,8.945e-05]
[1732137640204,0.51506661,93968.0,93940.0,0.01707521]
[1732137640205,0.66714661,93968.0,93940.0,0.01707521]
[1732137640410,0.66714661,93968.0,93916.0,0.0057]
[1732137640411,0.51506661,93941.0,93923.0,0.0049]
[1732137640600,0.51506661,93941.0,93902.0,0.15426661]
[1732137640601,0.3608,93933.0,93910.0,0.3608]
[1732137641205,0.3608,93925.0,93910.0,0.3608]
[1732137641539,0.3608,93925.0,93923.0,0.053184]
[1732137641690,0.00010392,93932.0,93923.0,0.053184]
[1732137642098,0.3608,93925.0,93914.0,0.053189]
[1732137642296,0.2370987,93925.0,93910.0,0.3608]
[1732137642508,0.3608,93924.0,93919.0,0.053186]
[1732137642804,0.3608,93924.0,93910.0,0.3608]
[1732137642805,0.3608,93924.0,93921.0,0.053185]
[1732137642994,0.3608,93924.0,93912.0,0.05319]
[1732137643195,0.3608,93924.0,93910.0,0.3608]
[1732137643501,0.001,93925.0,93924.0,0.053183]
[1732137643703,0.5988987,93925.0,93917.0,0.053187]
[1732137644002,0.5988987,93925.0,93910.0,0.3478]
[1732137644311,0.2370987,93911.0,93910.0,0.3478]
[1732137644636,0.001,93925.0,93910.0,0.66724]
[1732137644803,0.001,93925.0,93924.0,0.053183]
[1732137645200,0.00159771,93930.0,93929.0,0.053181]
[1732137645396,0.02126528,93962.0,93947.0,0.05317]
[1732137645397,0.0049,93948.0,93947.0,0.05317]
[1732137645593,0.3608,93957.0,93932.0,0.053179]
[1732137645594,0.3608,93957.0,93955.0,0.053166]
[1732137645793,0.36212,93969.0,93959.0,0.053164]
[1732137645999,0.0049,93980.0,93956.0,0.3608]
[1732137646205,0.0049,93985.0,93966.0,0.3608]
[1732137646409,0.02126528,93987.0,93966.0,0.3608]
[1732137646410,9.25e-05,93984.0,93966.0,0.3608]
[1732137646609,9.25e-05,93984.0,93982.0,0.05315]
[1732137647745,9.25e-05,93984.0,93983.0,0.3192]
[1732137647898,0.0049,94001.0,94000.0,0.05314]
[1732137648114,0.001,93984.0,93981.0,0.7216]
[1732137648407,0.001,93984.0,93982.0,0.053151]
[1732137648595,0.001,93984.0,93982.0,0.372351]
[1732137648798,7.856e-05,93983.0,93982.0,0.053151]
[1732137650604,0.001,93984.0,93982.0,0.372351]
[1732137650833,5.6e-07,93984.0,93983.0,0.5562987]
[1732137651307,5.6e-07,93984.0,93983.0,1.0149387]
[1732137651510,0.0049,94001.0,94000.0,0.05314]
[1732137651718,0.00013617,94001.0,94000.0,0.05314]
[1732137652602,1.7e-07,94001.0,94000.0,1.0331]
[1732137652809,0.0049,94019.0,94018.0,0.05313]
[1732137653016,0.0049,94037.0,94018.0,0.73301]
[1732137653312,0.0049,94045.0,94044.0,0.053116]
[1732137653515,0.3608,94062.0,94043.0,0.3608]
[1732137653711,0.02127389,94045.0,94043.0,0.3608]
[1732137653926,0.02127389,94045.0,94037.0,0.053119]
[1732137654220,0.02127389,94045.0,94044.0,0.053116]
[1732137654403,0.02127389,94045.0,94044.0,0.413916]
[1732137655309,0.0049,94062.0,94061.0,0.053106]
[1732137655507,0.00159536,94074.0,94070.0,0.053101]
[1732137655716,0.00159536,94074.0,94056.0,0.3608]
[1732137655717,0.053103,94067.0,94056.0,0.3608]
[1732137656018,0.02125066,94071.0,94056.0,0.3608]
[1732137656815,0.02125066,94071.0,94070.0,0.053101]
[1732137657907,0.02225066,94071.0,94070.0,0.053101]
[1732137658511,0.02225066,94071.0,94056.0,0.3608]
[1732137658712,0.3608,94065.0,94056.0,0.3608]
[1732137658914,0.053108,94058.0,94048.0,0.053113]
[1732137659113,0.3608,94065.0,94045.0,0.3608]
[1732137659304,0.02225066,94071.0,94053.0,0.3608]
[1732137659910,0.02225066,94071.0,94069.0,0.053101]
[1732137660612,0.02225066,94071.0,94070.0,0.3608]
[1732137660817,0.02225066,94071.0,94054.0,0.053109]
[1732137660818,0.63236936,94071.0,94051.0,0.3608]
[1732137661016,0.63236936,94071.0,94048.0,0.053113]
[1732137661017,0.413909,94056.0,94048.0,0.053113]
[1732137661215,0.413909,94056.0,94042.0,0.3608]
[1732137661216,0.3608,94056.0,94042.0,0.3608]
[1732137661410,0.053111,94053.0,94042.0,0.413916]
[1732137661613,0.2370987,94049.0,94031.0,0.3608]
[1732137661926,0.3608,94047.0,94031.0,0.36136]
[1732137662108,0.3608,94032.0,94031.0,0.00056]
[1732137662419,0.37186543,94032.0,94020.0,0.053129]
[1732137662631,0.37186543,94032.0,93997.0,0.0049]
[1732137662632,0.2370987,94028.0,94001.0,0.3608]
[1732137662808,0.2370987,94028.0,93997.0,0.0049]
[1732137662809,0.2370987,94012.0,93997.0,0.00649579]
[1732137663009,0.5978987,93998.0,93997.0,0.00159579]
[1732137663337,0.5978987,93998.0,93963.0,0.0049]
[1732137663338,0.85753915,93998.0,93963.0,0.0049]
[1732137663506,0.85753915,93998.0,93957.0,0.3608]
[1732137663507,0.3608,93990.0,93981.0,0.053151]
[1732137663709,0.2370987,93982.0,93965.0,0.3608]
[1732137663908,0.01104608,93981.0,93974.0,0.3608]
[1732137664106,0.01104608,93980.0,93979.0,0.053152]
[1732137664521,0.01104608,93980.0,93979.0,0.372352]
[1732137665122,0.01104608,93980.0,93977.0,0.3608]
[1732137665321,0.01104608,93979.0,93978.0,0.053153]
[1732137665515,0.001,93982.0,93978.0,0.053153]
[1732137665516,0.001,93982.0,93978.0,0.3192]
[1732137665717,0.001,93982.0,93977.0,0.3608]
[1732137665718,9.119e-05,93989.0,93981.0,0.053151]
[1732137665924,9.119e-05,93989.0,93977.0,0.3608]
[1732137665925,0.01113452,93988.0,93979.0,0.009]
[1732137666223,9.119e-05,93989.0,93979.0,0.009]
[1732137666422,0.053149,93985.0,93979.0,0.009]
[1732137666619,9.119e-05,93989.0,93979.0,0.3698]
[1732137666818,9.119e-05,93989.0,93988.0,0.053147]
[1732137667018,9.119e-05,93989.0,93979.0,0.009]
[1732137667019,0.37201681,93989.0,93979.0,0.009]
[1732137667218,0.37201681,93989.0,93982.0,0.05315]
[1732137667219,0.02892604,93988.0,93982.0,0.05315]
[1732137667424,0.053151,93981.0,93979.0,0.009]
[1732137667620,0.2370987,93983.0,93961.0,0.3609034]
[1732137667621,0.02892604,93980.0,93978.0,0.009]
[1732137667823,0.02892604,93979.0,93978.0,0.062153]
[1732137668022,0.01112562,93979.0,93978.0,0.062153]
[1732137668422,0.01112562,93979.0,93969.0,0.3608]
[1732137668713,9.119e-05,93989.0,93976.0,0.053154]
[1732137668714,0.02924721,93978.0,93976.0,0.053154]
[1732137668912,0.02924721,93977.0,93976.0,0.053154]
[1732137669316,9.119e-05,93989.0,93987.0,0.053148]
[1732137669611,9.119e-05,93989.0,93988.0,0.3608]
[1732137669920,0.02972401,93989.0,93988.0,0.3608]
[1732137670116,0.02972401,93989.0,93987.0,0.053148]
[1732137670117,0.02972727,93989.0,93987.0,0.053148]
[1732137670323,0.02972727,93989.0,93981.0,0.3608]
[1732137670324,0.02963608,93988.0,93981.0,0.3608]
[1732137670621,0.02970062,93987.0,93985.0,0.053149]
[1732137670824,0.02970062,93986.0,93985.0,0.053149]
[1732137671034,0.01142331,93986.0,93985.0,0.053149]
[1732137671414,0.02973406,93986.0,93985.0,0.053149]
[1732137671631,0.01142331,93986.0,93985.0,0.672349]
[1732137671816,9.119e-05,93989.0,93985.0,0.672349]
[1732137671817,9.119e-05,93989.0,93988.0,0.053147]
[1732137672019,0.01840665,93989.0,93988.0,0.053147]
[1732137672543,0.01840024,93989.0,93988.0,0.053147]
[1732137673326,0.01952136,93989.0,93988.0,0.381347]
[1732137673518,0.00109119,93989.0,93988.0,0.381347]
[1732137673719,0.01952757,93989.0,93988.0,0.381347]
[1732137673924,0.00109119,93989.0,93988.0,0.681347]
[1732137674839,0.0192593,93989.0,93988.0,0.062147]
[1732137675217,0.0192593,93989.0,93988.0,0.009]
[1732137675726,0.0182593,93989.0,93988.0,0.053147]
[1732137675925,0.0192593,93989.0,93988.0,0.062147]
[1732137676125,0.0192593,93989.0,93988.0,0.381347]
[1732137676518,0.00109119,93989.0,93988.0,0.681347]
[1732137676721,0.05473247,94009.0,94003.0,0.053139]
[1732137676922,0.01764413,94004.0,94003.0,0.053139]
[1732137677231,0.00159647,94009.0,94003.0,0.053139]
[1732137677232,0.00159647,94009.0,94008.0,0.053136]
[1732137677435,0.3608,94044.0,94008.0,0.053136]
[1732137677436,0.0049,94034.0,94014.0,0.2370987]
[1732137677617,0.02125775,94047.0,94041.0,0.053117]
[1732137678327,8.1e-07,94042.0,94041.0,0.672117]
[1732137678823,8.1e-07,94042.0,94041.0,0.851677]
[1732137679031,0.0049,94067.0,94066.0,0.053103]
[1732137679229,0.39539163,94095.0,94066.0,0.413903]
[1732137679230,0.01627616,94076.0,94066.0,0.413903]
[1732137679428,0.3665,94103.0,94066.0,0.413903]
[1732137679429,0.01627616,94080.0,94075.0,0.3608]
[1732137679630,0.01627616,94097.0,94096.0,0.053086]
[1732137679825,0.01627616,94097.0,94079.0,0.3608]
[1732137679826,0.053082,94104.0,94098.0,0.053085]
[1732137680121,0.01633596,94099.0,94098.0,0.053085]
[1732137680322,0.1163345,94100.0,94098.0,0.053085]
[1732137680537,0.1,94100.0,94098.0,0.053085]
[1732137680727,0.00136,94107.0,94099.0,0.3188]
[1732137680933,0.00159494,94110.0,94109.0,0.053079]
[1732137681132,0.00159494,94110.0,94109.0,0.371839]
[1732137682523,0.04,94124.0,94123.0,0.053071]
[1732137682725,0.01633596,94136.0,94123.0,0.413871]
[1732137682930,0.00663338,94135.0,94133.0,0.413865]
[1732137683126,0.00663338,94134.0,94133.0,0.413865]
[1732137683330,0.01633596,94146.0,94133.0,0.3608]
[1732137683641,0.3608,94158.0,94133.0,0.3608]
[1732137683642,0.05306,94142.0,94133.0,0.3608]
[1732137683824,0.01811387,94141.0,94133.0,0.053065]
[1732137684022,0.053063,94138.0,94134.0,0.053065]
[1732137684224,0.01811387,94137.0,94135.0,0.053064]
[1732137684424,0.0114808,94136.0,94135.0,0.053064]
[1732137685029,0.0114808,94136.0,94135.0,0.371744]
[1732137685628,0.0124808,94136.0,94135.0,0.371744]
[1732137685935,0.0124808,94136.0,94135.0,0.732544]
[1732137687132,0.001,94136.0,94127.0,0.3608]
[1732137687443,0.3608,94128.0,94107.0,0.00056]
[1732137687634,0.053079,94109.0,94104.0,0.053081]
[1732137687835,0.3608,94108.0,94094.0,0.3608]
[1732137688034,0.053081,94105.0,94097.0,0.053085]
[1732137688229,0.5978987,94124.0,94094.0,0.1794]
[1732137688531,0.59170547,94135.0,94094.0,0.1794]
[1732137688532,0.03692986,94123.0,94115.0,0.053075]
[1732137688733,0.00622,94135.0,94096.0,0.3608]
[1732137688734,0.053074,94119.0,94096.0,0.3608]
[1732137689033,0.03029494,94118.0,94113.0,0.053076]
[1732137689234,0.001,94105.0,94104.0,0.053082]
[1732137689435,0.001,94105.0,94104.0,0.713882]
[1732137689643,0.0049,94130.0,94104.0,0.713882]
[1732137689644,0.0049,94130.0,94128.0,0.053068]
[1732137689832,0.01618438,94148.0,94139.0,0.053061]
[1732137690038,0.03007264,94145.0,94133.0,0.1794]
[1732137690329,0.0115664,94144.0,94138.0,0.053062]
[1732137690527,0.053059,94145.0,94138.0,0.053062]
[1732137690528,0.0115664,94143.0,94138.0,0.053062]
[1732137690725,0.0115664,94142.0,94140.0,0.053061]
[1732137690925,0.00159433,94146.0,94125.0,0.3608]
[1732137690926,0.053067,94131.0,94125.0,0.3608]
[1732137691125,0.053067,94131.0,94124.0,0.17936]
[1732137691126,0.053069,94128.0,94124.0,0.17936]
[1732137691426,0.3608,94131.0,94120.0,0.17936]
[1732137691627,0.3608,94131.0,94108.0,1.5]
[1732137691628,0.001,94143.0,94129.0,0.053068]
[1732137691835,0.001,94143.0,94142.0,0.05306]
[1732137692025,0.01247074,94143.0,94137.0,0.053063]
[1732137692231,0.01247074,94143.0,94130.0,0.17936]
[1732137692232,0.3608,94140.0,94130.0,0.17936]
[1732137692448,0.00159433,94146.0,94130.0,0.17936]
[1732137692449,0.00159433,94146.0,94145.0,0.053059]
[1732137692735,0.00159433,94146.0,94137.0,0.053063]
[1732137692736,0.053059,94144.0,94137.0,0.053063]
[1732137693056,0.053067,94131.0,94128.0,0.053068]
[1732137693239,0.00159433,94146.0,94125.0,0.05307]
[1732137693240,0.053063,94137.0,94125.0,0.05307]
[1732137693531,0.053063,94137.0,94115.0,0.3608]
[1732137693532,0.3608,94138.0,94127.0,0.053069]
[1732137693738,0.3608,94138.0,94126.0,0.17936]
[1732137693739,0.413863,94138.0,94117.0,0.053074]
[1732137693942,0.413863,94138.0,94125.0,0.053069]
[1732137693943,0.053069,94127.0,94125.0,0.053069]
[1732137694532,0.053069,94127.0,94119.0,0.17936]
[1732137694533,0.3608,94130.0,94127.0,0.053068]
[1732137694835,0.3608,94130.0,94114.0,0.005]
[1732137695337,0.413876,94115.0,94114.0,0.005]
[1732137695527,0.413876,94115.0,94109.0,0.053079]
[1732137695528,0.3608,94115.0,94109.0,0.053079]
[1732137695726,0.053078,94111.0,94101.0,0.17936]
[1732137696038,0.05308,94108.0,94106.0,0.05308]
[1732137696242,0.053076,94114.0,94108.0,0.053079]
[1732137696450,0.3608,94120.0,94101.0,0.17936]
[1732137696734,0.001,94127.0,94126.0,0.053069]
[1732137697135,0.001,94130.0,94123.0,0.3608]
[1732137697361,0.001,94130.0,94129.0,0.053068]
[1732137697541,0.3608,94149.0,94145.0,0.053059]
[1732137697745,0.01322284,94146.0,94145.0,0.053059]
[1732137698049,0.01162851,94146.0,94145.0,0.053059]
[1732137698231,0.053049,94163.0,94152.0,0.053055]
[1732137698433,0.09689808,94153.0,94152.0,0.053055]
[1732137698831,0.053056,94151.0,94150.0,0.053056]
[1732137699138,0.053056,94150.0,94147.0,0.053057]
[1732137699445,0.03017083,94149.0,94147.0,0.053057]
[1732137699742,0.03017083,94148.0,94147.0,0.053057]
[1732137699939,0.03017083,94148.0,94137.0,0.17936]
[1732137700143,0.03017083,94147.0,94137.0,0.17936]
[1732137700344,0.0304896,94146.0,94137.0,0.17936]
[1732137700536,0.0304896,94145.0,94143.0,0.053059]
[1732137700850,0.0304896,94144.0,94143.0,0.053059]
[1732137701047,0.0835486,94144.0,94143.0,0.053059]
[1732137701253,0.39792243,94144.0,94143.0,0.053059]
[1732137702236,0.39792243,94144.0,94131.0,0.005]
[1732137702446,0.05307,94125.0,94123.0,0.005]
[1732137702741,0.3608,94132.0,94108.0,0.36136]
[1732137702742,0.39792279,94124.0,94109.0,1.5]
[1732137702934,0.03712279,94123.0,94109.0,1.5]
[1732137703136,0.053078,94111.0,94109.0,1.5]
[1732137703331,0.01172677,94110.0,94109.0,0.053079]
[1732137703538,0.0309994,94110.0,94109.0,0.053079]
[1732137703744,0.0840774,94110.0,94109.0,0.053079]
[1732137704143,0.09071133,94110.0,94109.0,0.053079]
[1732137704345,0.03763333,94110.0,94104.0,0.17932]
[1732137704550,0.053083,94101.0,94100.0,0.00056]
[1732137704750,0.053083,94101.0,94093.0,0.00512242]
[1732137704751,0.053086,94096.0,94093.0,0.00012242]
[1732137705050,0.03763333,94096.0,94070.0,1.5]
[1732137705236,0.01624117,94087.0,94070.0,1.5]
[1732137705437,0.3608,94081.0,94070.0,1.5]
[1732137705681,0.3608,94081.0,94072.0,0.053099]
[1732137705682,0.03763333,94080.0,94072.0,0.053099]
[1732137705851,0.413899,94073.0,94072.0,0.053099]
[1732137706147,0.45163409,94073.0,94072.0,0.053099]
[1732137706541,0.41485216,94073.0,94072.0,0.053099]
[1732137706745,0.39853509,94073.0,94072.0,0.053099]
[1732137707157,0.39853509,94073.0,94062.0,0.00159376]
[1732137707158,0.3985349,94073.0,94062.0,0.00159376]
[1732137707340,0.3985349,94073.0,94064.0,0.053104]
[1732137707341,0.3608,94065.0,94064.0,0.053104]
[1732137707650,0.0376346,94065.0,94064.0,0.053104]
[1732137707952,0.0309994,94065.0,94064.0,0.053104]
[1732137708147,0.01172677,94065.0,94064.0,0.372024]
[1732137708338,0.00110054,94073.0,94072.0,0.0531]
[1732137708537,0.52449293,94110.0,94072.0,0.0531]
[1732137708538,0.3608,94098.0,94072.0,0.7817787]
[1732137708739,0.01637313,94086.0,94084.0,0.053093]
[1732137709045,0.00663409,94085.0,94084.0,0.053093]
[1732137709350,0.02300722,94085.0,94084.0,0.053093]
[1732137709545,0.053097,94078.0,94075.0,0.053098]
[1732137709742,0.00663409,94077.0,94075.0,0.053098]
[1732137709943,0.00663409,94076.0,94075.0,0.053098]
[1732137710546,0.00663409,94076.0,94072.0,0.009]
[1732137710862,0.00663409,94075.0,94074.0,0.053099]
[1732137711353,0.00663409,94075.0,94064.0,0.18388]
[1732137711552,0.00663409,94074.0,94073.0,0.053099]
[1732137711854,0.00663409,94074.0,94057.0,0.18392]
[1732137712045,0.3608,94071.0,94057.0,0.18392]
[1732137712352,0.3608,94071.0,94070.0,0.053101]
[1732137712546,0.36743671,94071.0,94070.0,0.053101]
[1732137713053,0.36743671,94071.0,94057.0,0.18392]
[1732137713054,0.053105,94063.0,94057.0,0.053108]
[1732137713251,0.053105,94063.0,94055.0,1.5]
[1732137713252,0.413905,94063.0,94055.0,1.5]
[1732137713455,0.00663754,94063.0,94061.0,0.053106]
[1732137713748,0.00663754,94063.0,94062.0,0.01059376]
[1732137714339,0.3608,94073.0,94062.0,0.01059376]
[1732137714542,0.053101,94071.0,94070.0,0.0531]
[1732137714747,0.006638,94071.0,94070.0,0.0531]
[1732137715748,0.006638,94071.0,94062.0,0.00159376]
[1732137715950,0.36232,94073.0,94068.0,0.053102]
[1732137715951,0.059739,94070.0,94068.0,0.053102]
[1732137716152,0.006638,94069.0,94068.0,0.053102]
[1732137717544,0.001,94071.0,94070.0,0.053101]
[1732137717740,0.001,94071.0,94062.0,0.00159376]
[1732137717741,0.00763766,94071.0,94062.0,0.00159376]
[1732137717942,0.3608,94073.0,94066.0,0.053103]
[1732137718142,0.001,94069.0,94068.0,0.053102]
[1732137718350,0.00763791,94069.0,94068.0,0.053102]
[1732137718559,0.02676775,94069.0,94068.0,0.372022]
[1732137718760,0.00307527,94090.0,94089.0,0.05309]
[1732137719060,0.00159527,94090.0,94089.0,0.05309]
[1732137719563,0.053077,94113.0,94112.0,0.053076]
[1732137719757,0.3608,94118.0,94102.0,0.053083]
[1732137720062,0.3608,94106.0,94105.0,0.053081]
[1732137720558,0.37206588,94106.0,94105.0,0.053081]
[1732137720761,0.3608,94106.0,94105.0,0.053081]
[1732137720968,0.37206525,94106.0,94105.0,0.053081]
[1732137721954,0.37206525,94106.0,94105.0,0.371881]
[1732137721955,0.01126525,94106.0,94105.0,0.371881]
[1732137722344,0.3608,94118.0,94117.0,0.053074]
[1732137722660,0.3716124,94118.0,94117.0,0.053074]
[1732137723652,0.0108124,94118.0,94117.0,0.371834]
[1732137723850,0.005,94135.0,94125.0,0.05307]
[1732137724049,0.01246673,94126.0,94125.0,0.37179]
[1732137724350,0.3608,94140.0,94137.0,0.053063]
[1732137724552,0.3608,94140.0,94139.0,0.053062]
[1732137724553,0.4008,94140.0,94139.0,0.053062]
[1732137724756,0.411742,94140.0,94139.0,0.053062]
[1732137725865,0.0853,94153.0,94152.0,0.053055]
[1732137726168,0.09616816,94153.0,94152.0,0.6509537]
[1732137726352,0.09616816,94153.0,94152.0,0.6087937]
[1732137726657,0.09616816,94153.0,94152.0,2.1087937]
[1732137726870,0.09616816,94153.0,94152.0,2.4695937]
[1732137727165,0.005,94170.0,94167.0,0.053046]
[1732137727351,0.3608,94181.0,94167.0,0.236926]
[1732137727756,0.05304,94178.0,94167.0,0.236926]
[1732137728247,0.02623979,94187.0,94186.0,0.053036]
[1732137728248,0.005,94187.0,94186.0,0.053036]
[1732137728449,0.3608,94190.0,94167.0,0.7176]
[1732137728755,0.3608,94179.0,94175.0,0.053042]
[1732137729459,0.01779424,94178.0,94175.0,0.053042]
[1732137729757,0.01779424,94177.0,94175.0,0.053042]
[1732137730052,0.3608,94179.0,94175.0,0.053042]
[1732137730053,0.01779424,94176.0,94175.0,0.053042]
[1732137730257,0.3608,94179.0,94178.0,0.05304]
[1732137730485,0.36328,94190.0,94189.0,0.053034]
[1732137730655,0.37954209,94190.0,94189.0,0.053034]
[1732137730853,0.3618,94190.0,94189.0,0.053034]
[1732137731360,0.10148,94200.0,94189.0,0.0531319]
[1732137731550,0.1,94200.0,94199.0,0.053028]
[1732137732161,0.11772099,94200.0,94199.0,0.053028]
[1732137732454,0.1,94200.0,94199.0,0.053028]
[1732137732661,0.1177029,94200.0,94199.0,0.053028]
[1732137732859,0.1,94200.0,94199.0,0.053028]
[1732137733363,0.101,94200.0,94199.0,0.053028]
[1732137735049,0.005,94219.0,94199.0,0.61848]
[1732137735253,0.0049,94225.0,94211.0,0.2370987]
[1732137735254,0.005,94225.0,94211.0,0.2370987]
[1732137735550,0.3608,94232.0,94230.0,0.053011]
[1732137736150,0.00159277,94242.0,94231.0,0.2370987]
[1732137736461,0.39328,94245.0,94231.0,0.2370987]
[1732137736462,0.36228,94245.0,94231.0,0.2370987]
[1732137736660,0.005,94255.0,94242.0,0.053004]
[1732137736868,0.052998,94254.0,94245.0,0.053002]
[1732137737054,0.052998,94253.0,94245.0,0.053002]
[1732137737361,0.053,94249.0,94240.0,0.053005]
[1732137737552,0.3608,94257.0,94233.0,0.3608]
[1732137737553,0.3608,94257.0,94253.0,0.052998]
[1732137737755,0.3608,94257.0,94233.0,0.3608]
[1732137737952,0.3608,94257.0,94208.0,0.005]
[1732137737953,0.3608,94240.0,94208.0,0.005]
[1732137738162,0.053013,94227.0,94213.0,0.18592]
[1732137738462,0.3608,94230.0,94209.0,1.5]
[1732137738463,0.3608,94214.0,94210.0,0.053021]
[1732137738655,0.3608,94214.0,94213.0,0.05302]
[1732137738861,0.3608,94214.0,94209.0,1.5]
[1732137738862,0.0327,94226.0,94209.0,1.7370987]
[1732137739173,0.0327,94226.0,94201.0,0.3608]
[1732137739174,0.053017,94220.0,94201.0,0.3608]
[1732137739554,0.0327,94226.0,94209.0,0.2370987]
[1732137739751,0.3608,94232.0,94230.0,0.05301]
[1732137739964,0.3608,94232.0,94211.0,0.053021]
[1732137739965,0.3608,94232.0,94225.0,0.053013]
[1732137740263,0.3608,94232.0,94209.0,0.5978987]
[1732137740264,0.3608,94230.0,94209.0,0.2370987]
[1732137740453,0.3608,94230.0,94203.0,0.00159215]
[1732137740454,0.3608,94218.0,94203.0,0.00159215]
[1732137740655,0.3608,94218.0,94217.0,0.053018]
[1732137741062,0.3608,94218.0,94203.0,0.00159215]
[1732137741263,0.3608,94218.0,94209.0,0.053023]
[1732137741466,0.3608,94218.0,94217.0,0.053018]
[1732137742358,0.3608,94218.0,94203.0,0.009]
[1732137742557,0.3608,94210.0,94203.0,0.009]
[1732137742770,0.3608,94210.0,94205.0,0.053025]
[1732137742771,0.053023,94209.0,94205.0,0.053025]
[1732137743073,0.053023,94209.0,94191.0,0.00159229]
[1732137743074,0.053032,94192.0,94191.0,0.00159229]
[1732137743266,0.3608,94206.0,94191.0,0.00159229]
[1732137743660,0.0653,94208.0,94207.0,0.053024]
[1732137743862,0.053026,94203.0,94191.0,0.00159229]
[1732137744063,0.053026,94203.0,94201.0,0.053027]
[1732137744261,0.42758,94208.0,94191.0,0.00159229]
[1732137744470,0.413832,94193.0,94191.0,0.00159229]
[1732137744667,0.32975525,94192.0,94174.0,0.413842]
[1732137744997,0.5978987,94193.0,94174.0,0.3608]
[1732137744998,0.36228,94193.0,94174.0,0.3608]
[1732137745266,0.3608,94185.0,94174.0,0.3608]
[1732137745464,0.053039,94180.0,94177.0,0.05304]
[1732137745766,0.05315978,94179.0,94177.0,0.05304]
[1732137746071,0.3608,94178.0,94166.0,0.18588]
[1732137746273,0.3608,94167.0,94166.0,0.18588]
[1732137746466,0.3608,94167.0,94165.0,0.00010936]
[1732137746467,0.053047,94166.0,94165.0,0.00010936]
[1732137746660,0.371647,94166.0,94140.0,0.54668]
[1732137746857,0.413851,94159.0,94141.0,1.5]
[1732137747067,0.3608,94159.0,94141.0,1.5]
[1732137747360,0.37193566,94159.0,94157.0,0.053052]
[1732137747673,0.3608,94159.0,94157.0,0.053052]
[1732137748271,0.3608,94166.0,94165.0,0.053047]
[1732137748474,0.00011978,94179.0,94178.0,0.05304]
[1732137748666,0.02917551,94179.0,94178.0,0.05304]
[1732137749268,0.01129506,94179.0,94178.0,0.05304]
[1732137749461,0.02904817,94179.0,94178.0,0.05304]
[1732137749661,0.02125391,94198.0,94178.0,0.7324]
[1732137749662,0.005,94198.0,94178.0,0.7324]
[1732137749971,0.00159346,94199.0,94186.0,0.2370987]
[1732137750172,0.00159346,94199.0,94198.0,0.053029]
[1732137750362,0.01939992,94199.0,94198.0,0.053029]
[1732137750768,0.01780646,94199.0,94198.0,0.053029]
[1732137750969,0.00010936,94205.0,94204.0,0.053025]
[1732137751471,0.01764211,94205.0,94204.0,0.31844]
[1732137751675,0.01764211,94205.0,94204.0,0.371465]
[1732137752067,0.005,94224.0,94223.0,0.053015]
[1732137752265,0.01738236,94224.0,94219.0,0.18588]
[1732137752475,0.413809,94234.0,94222.0,0.053015]
[1732137752476,0.01738236,94223.0,94222.0,0.053015]
[1732137754466,0.3608,94226.0,94219.0,0.18588]
[1732137754467,0.3608,94226.0,94225.0,0.053014]
[1732137754664,0.37794069,94226.0,94225.0,0.053014]
[1732137754869,0.37794069,94226.0,94212.0,0.3608]
[1732137754870,0.053014,94225.0,94212.0,0.18588]
[1732137755067,0.01714129,94224.0,94212.0,0.18588]
[1732137755277,0.01714129,94223.0,94221.0,0.053015]
[1732137755467,0.36232,94226.0,94221.0,0.053015]
[1732137755468,0.01714129,94222.0,94221.0,0.053015]
[1732137755871,0.01714129,94222.0,94221.0,0.29022983]
[1732137756277,0.057902,94246.0,94221.0,0.60862983]
[1732137756278,0.01639172,94234.0,94221.0,0.60862983]
[1732137756473,0.01639172,94237.0,94231.0,0.2370987]
[1732137756778,0.01639172,94240.0,94238.0,0.053006]
[1732137756964,0.00311252,94253.0,94251.0,0.052998]
[1732137757161,0.00159252,94253.0,94251.0,0.052998]
[1732137757362,0.00159252,94253.0,94239.0,0.18584]
[1732137757666,0.01640169,94245.0,94244.0,0.053003]
[1732137757866,0.00159252,94253.0,94239.0,0.18584]
[1732137758070,0.00159252,94253.0,94251.0,0.052999]
[1732137758373,0.00159252,94253.0,94239.0,0.18584]
[1732137758574,0.3608,94249.0,94247.0,0.053001]
[1732137759166,0.00159252,94253.0,94252.0,0.052998]
[1732137761874,0.01219949,94253.0,94252.0,0.052998]
[1732137762673,0.005,94272.0,94271.0,0.052988]
[1732137762873,0.3608,94286.0,94284.0,0.05298]
[1732137763076,0.0304,94292.0,94271.0,0.1858]
[1732137763077,0.0304,94292.0,94291.0,0.052976]
[1732137763871,0.052972,94299.0,94278.0,0.3608]
[1732137764077,0.052973,94298.0,94293.0,0.052975]
[1732137764375,0.3608,94308.0,94293.0,0.052975]
[1732137764376,0.052975,94295.0,94293.0,0.052975]
[1732137764686,0.4608,94300.0,94299.0,0.052972]
[1732137764980,0.1,94300.0,94299.0,0.052972]
[1732137767484,0.4608,94300.0,94294.0,0.00012953]
[1732137767667,0.052974,94295.0,94271.0,0.18935099]
[1732137767871,0.2370987,94297.0,94271.0,0.18935099]
[1732137767872,0.3608,94277.0,94271.0,0.18935099]
[1732137768097,0.052987,94272.0,94271.0,0.00159099]
[1732137768275,0.3608,94277.0,94271.0,0.00159099]
[1732137768474,0.3608,94287.0,94273.0,0.052986]
[1732137768475,0.052983,94279.0,94273.0,0.052986]
[1732137768680,0.052985,94277.0,94273.0,0.052986]
[1732137768881,0.3608,94279.0,94271.0,0.00159099]
[1732137768882,0.052985,94276.0,94274.0,0.052986]
[1732137769370,0.0001054,94278.0,94276.0,0.052985]